[Event "Titled Tuesday Blitz April 11 Early 2023"]
[White "Sharapov, Evgeny"]
[Black "Bacallao Alonso, Yusnel"]
[WhiteFideId "14103133"]
[BlackFideId "3507416"]
[WhiteElo "2367"]
[BlackElo "2561"]
[Result "0-1"]
[Round "08"]
[TimeControl "180+2"]
[Date "2023.04.11"]
[WhiteClock "0:00:13"]
[BlackClock "0:00:11"]

1. e4 {[%clk 0:02:59]}  c6 {[%clk 0:02:59]} 2. d4 {[%clk 0:02:59]}  d5 {[%clk 0:03:00]} 3. e5 {[%clk 0:02:59]}  c5 {[%clk 0:03:00]} 4. Nf3 {[%clk 0:02:59]}  cxd4 {[%clk 0:03:00]} 5. Qxd4 {[%clk 0:02:56]}  Nc6 {[%clk 0:02:59]} 6. Qf4 {[%clk 0:02:56]}  e6 {[%clk 0:02:58]} 7. a3 {[%clk 0:02:56]}  Qc7 {[%clk 0:02:40]} 8. Bd3 {[%clk 0:02:55]}  Nge7 {[%clk 0:02:38]} 9. O-O {[%clk 0:02:46]}  Ng6 {[%clk 0:02:38]} 10. Bxg6 {[%clk 0:02:46]}  hxg6 {[%clk 0:02:38]} 11. Nc3 {[%clk 0:02:41]}  a6 {[%clk 0:02:37]} 12. Re1 {[%clk 0:02:40]}  Be7 {[%clk 0:02:30]} 13. Ng5 {[%clk 0:02:32]}  Bc5 {[%clk 0:02:12]} 14. h4 {[%clk 0:02:09]}  b5 {[%clk 0:01:52]} 15. Qg3 {[%clk 0:02:07]}  Nd4 {[%clk 0:01:35]} 16. Qd3 {[%clk 0:01:44]}  Rxh4 {[%clk 0:01:24]} 17. Be3 {[%clk 0:01:29]}  Nf5 {[%clk 0:01:18]} 18. Bxc5 {[%clk 0:01:24]}  Qxc5 {[%clk 0:01:19]} 19. Nf3 {[%clk 0:01:21]}  Rc4 {[%clk 0:01:10]} 20. Rad1 {[%clk 0:01:16]}  Bb7 {[%clk 0:01:10]} 21. Ng5 {[%clk 0:01:08]}  Ke7 {[%clk 0:01:00]} 22. Qf3 {[%clk 0:01:04]}  Rh8 {[%clk 0:00:22]} 23. g4 {[%clk 0:01:00]}  Rh4 {[%clk 0:00:20]} 24. gxf5 {[%clk 0:00:58]}  Rcf4 {[%clk 0:00:20]} 25. f6+ {[%clk 0:00:48]}  Kf8 {[%clk 0:00:18]} 26. Qe2 {[%clk 0:00:31]}  Rhg4+ {[%clk 0:00:16]} 27. Kf1 {[%clk 0:00:30]}  Rxg5 {[%clk 0:00:16]} 28. fxg7+ {[%clk 0:00:24]}  Kxg7 {[%clk 0:00:16]} 29. Qe3 {[%clk 0:00:23]}  Qc4+ {[%clk 0:00:14]} 30. Qd3 {[%clk 0:00:22]}  Rgf5 {[%clk 0:00:11]} 31. Qxc4 {[%clk 0:00:21]}  Rxf2+ {[%clk 0:00:10]} 32. Kg1 {[%clk 0:00:21]}  dxc4 {[%clk 0:00:10]} 33. Re2 {[%clk 0:00:18]}  Rxe2 {[%clk 0:00:10]} 34. Nxe2 {[%clk 0:00:18]}  Rxe5 {[%clk 0:00:09]} 35. Nd4 {[%clk 0:00:18]}  Rd5 {[%clk 0:00:09]} 36. Rd2 {[%clk 0:00:18]}  Rh5 {[%clk 0:00:09]} 37. Kf2 {[%clk 0:00:16]}  Rh2+ {[%clk 0:00:08]} 38. Ke3 {[%clk 0:00:16]}  Rxd2 {[%clk 0:00:08]} 39. Kxd2 {[%clk 0:00:17]}  e5 {[%clk 0:00:09]} 40. Ne2 {[%clk 0:00:15]}  f5 {[%clk 0:00:10]} 41. Ke3 {[%clk 0:00:15]}  Kf6 {[%clk 0:00:10]} 42. b3 {[%clk 0:00:14]}  f4+ {[%clk 0:00:10]} 43. Kf2 {[%clk 0:00:14]}  cxb3 {[%clk 0:00:10]} 44. cxb3 {[%clk 0:00:14]}  g5 {[%clk 0:00:11]} 45. Nc3 {[%clk 0:00:13]}  g4 {[%clk 0:00:11]} 0-1


[Site "https://www.chess.com"]

[Event "Titled Tuesday Blitz April 11 Early 2023"]
[White "Grot, Blazej"]
[Black "Csonka, Balazs"]
[WhiteFideId "21835845"]
[BlackFideId "742910"]
[WhiteElo "1823"]
[BlackElo "2404"]
[Result "1/2-1/2"]
[Round "08"]
[TimeControl "180+2"]
[Date "2023.04.11"]
[WhiteClock "0:00:18"]
[BlackClock "0:00:01"]

1. e4 {[%clk 0:02:56]}  e5 {[%clk 0:02:59]} 2. Nf3 {[%clk 0:02:47]}  Nc6 {[%clk 0:02:59]} 3. Bb5 {[%clk 0:02:44]}  a6 {[%clk 0:02:56]} 4. Ba4 {[%clk 0:02:44]}  Nf6 {[%clk 0:02:54]} 5. O-O {[%clk 0:02:42]}  Nxe4 {[%clk 0:02:54]} 6. d4 {[%clk 0:02:38]}  b5 {[%clk 0:02:53]} 7. Bb3 {[%clk 0:02:37]}  d5 {[%clk 0:02:53]} 8. dxe5 {[%clk 0:02:33]}  Be6 {[%clk 0:02:53]} 9. c3 {[%clk 0:02:33]}  Bc5 {[%clk 0:02:46]} 10. Nbd2 {[%clk 0:02:33]}  O-O {[%clk 0:02:44]} 11. Qe2 {[%clk 0:02:25]}  Bf5 {[%clk 0:02:09]} 12. Nxe4 {[%clk 0:02:24]}  dxe4 {[%clk 0:02:01]} 13. Ng5 {[%clk 0:02:18]}  Qd3 {[%clk 0:00:55]} 14. Qxd3 {[%clk 0:02:12]}  exd3 {[%clk 0:00:56]} 15. Bd5 {[%clk 0:02:12]}  Nxe5 {[%clk 0:00:56]} 16. Bxa8 {[%clk 0:02:07]}  Rxa8 {[%clk 0:00:57]} 17. Bf4 {[%clk 0:02:01]}  Nc4 {[%clk 0:00:30]} 18. b3 {[%clk 0:01:56]}  Nd6 {[%clk 0:00:27]} 19. b4 {[%clk 0:01:51]}  Bb6 {[%clk 0:00:27]} 20. a4 {[%clk 0:01:47]}  f6 {[%clk 0:00:16]} 21. Bxd6 {[%clk 0:01:42]}  cxd6 {[%clk 0:00:15]} 22. Nf3 {[%clk 0:01:38]}  Rc8 {[%clk 0:00:14]} 23. axb5 {[%clk 0:01:34]}  axb5 {[%clk 0:00:14]} 24. Ra6 {[%clk 0:01:31]}  Rb8 {[%clk 0:00:05]} 25. Nd4 {[%clk 0:01:23]}  Bxd4 {[%clk 0:00:04]} 26. cxd4 {[%clk 0:01:24]}  d5 {[%clk 0:00:05]} 27. f3 {[%clk 0:01:16]}  Rc8 {[%clk 0:00:04]} 28. Rd1 {[%clk 0:01:13]}  Rc2 {[%clk 0:00:03]} 29. Rb6 {[%clk 0:01:08]}  d2 {[%clk 0:00:03]} 30. Kf2 {[%clk 0:01:05]}  Bd3 {[%clk 0:00:02]} 31. Ke3 {[%clk 0:01:02]}  Bc4 {[%clk 0:00:03]} 32. Rxd2 {[%clk 0:01:02]}  Rc3+ {[%clk 0:00:03]} 33. Kf2 {[%clk 0:01:01]}  Rb3 {[%clk 0:00:04]} 34. Ra2 {[%clk 0:00:53]}  Kf7 {[%clk 0:00:04]} 35. Ra7+ {[%clk 0:00:49]}  Kg6 {[%clk 0:00:04]} 36. Rbb7 {[%clk 0:00:50]}  h5 {[%clk 0:00:03]} 37. Rxg7+ {[%clk 0:00:50]}  Kf5 {[%clk 0:00:04]} 38. Rh7 {[%clk 0:00:49]}  Rb2+ {[%clk 0:00:02]} 39. Kg3 {[%clk 0:00:48]}  Rxb4 {[%clk 0:00:03]} 40. Rxh5+ {[%clk 0:00:47]}  Ke6 {[%clk 0:00:03]} 41. Ra6+ {[%clk 0:00:46]}  Kf7 {[%clk 0:00:02]} 42. Rh6 {[%clk 0:00:46]}  Rb2 {[%clk 0:00:01]} 43. Raxf6+ {[%clk 0:00:45]}  Kg7 {[%clk 0:00:02]} 44. Rhg6+ {[%clk 0:00:44]}  Kh7 {[%clk 0:00:02]} 45. Rg4 {[%clk 0:00:41]}  Bf1 {[%clk 0:00:01]} 46. Rf7+ {[%clk 0:00:35]}  Kh6 {[%clk 0:00:01]} 47. Rf6+ {[%clk 0:00:34]}  Kh7 {[%clk 0:00:01]} 48. Kh3 {[%clk 0:00:30]}  b4 {[%clk 0:00:01]} 49. Rf5 {[%clk 0:00:29]}  Kh6 {[%clk 0:00:01]} 50. Rxd5 {[%clk 0:00:27]}  b3 {[%clk 0:00:01]} 51. Rd6+ {[%clk 0:00:27]}  Kh7 {[%clk 0:00:01]} 52. Rd7+ {[%clk 0:00:27]}  Kh6 {[%clk 0:00:01]} 53. Rd8 {[%clk 0:00:26]}  Kh7 {[%clk 0:00:01]} 54. Rd7+ {[%clk 0:00:18]}  Kh6 {[%clk 0:00:01]} 55. Rd6+ {[%clk 0:00:18]}  Kh7 {[%clk 0:00:01]} 56. Rd7+ {[%clk 0:00:18]} 1/2-1/2


[Site "https://www.chess.com"]

[Event "Titled Tuesday Blitz April 11 Early 2023"]
[White "Jaferian, Koosha"]
[Black "Shuvalov, Evgenij"]
[WhiteFideId "12507440"]
[BlackFideId "4187237"]
[WhiteElo "2073"]
[BlackElo "2080"]
[Result "1/2-1/2"]
[Round "08"]
[TimeControl "180+2"]
[Date "2023.04.11"]
[WhiteClock "0:00:19"]
[BlackClock "0:00:18"]

1. e4 {[%clk 0:02:53]}  e6 {[%clk 0:03:00]} 2. d4 {[%clk 0:02:53]}  d5 {[%clk 0:03:00]} 3. Bd3 {[%clk 0:02:54]}  c5 {[%clk 0:02:58]} 4. exd5 {[%clk 0:02:54]}  exd5 {[%clk 0:02:57]} 5. Nf3 {[%clk 0:02:54]}  c4 {[%clk 0:02:57]} 6. Be2 {[%clk 0:02:54]}  Nf6 {[%clk 0:02:57]} 7. O-O {[%clk 0:02:55]}  Be7 {[%clk 0:02:57]} 8. b3 {[%clk 0:02:55]}  cxb3 {[%clk 0:02:57]} 9. axb3 {[%clk 0:02:56]}  O-O {[%clk 0:02:57]} 10. c4 {[%clk 0:02:57]}  Nc6 {[%clk 0:02:57]} 11. Ba3 {[%clk 0:02:52]}  Bxa3 {[%clk 0:02:55]} 12. Rxa3 {[%clk 0:02:53]}  Ne4 {[%clk 0:02:49]} 13. Bd3 {[%clk 0:02:27]}  Bg4 {[%clk 0:02:41]} 14. cxd5 {[%clk 0:02:03]}  Qxd5 {[%clk 0:02:42]} 15. Bc4 {[%clk 0:02:03]}  Qh5 {[%clk 0:02:31]} 16. Be2 {[%clk 0:01:22]}  Rad8 {[%clk 0:02:30]} 17. Ra4 {[%clk 0:01:16]}  Rfe8 {[%clk 0:02:08]} 18. Re1 {[%clk 0:01:13]}  h6 {[%clk 0:01:51]} 19. h3 {[%clk 0:01:04]}  Bc8 {[%clk 0:01:46]} 20. Nfd2 {[%clk 0:01:00]}  Qf5 {[%clk 0:01:33]} 21. Bf3 {[%clk 0:01:00]}  Ng5 {[%clk 0:01:20]} 22. Rxe8+ {[%clk 0:01:01]}  Rxe8 {[%clk 0:01:20]} 23. Bg4 {[%clk 0:00:48]}  Qd3 {[%clk 0:01:15]} 24. Bxc8 {[%clk 0:00:48]}  Rxc8 {[%clk 0:01:12]} 25. Qf1 {[%clk 0:00:48]}  Qxf1+ {[%clk 0:01:02]} 26. Nxf1 {[%clk 0:00:49]}  Rd8 {[%clk 0:01:01]} 27. Ne3 {[%clk 0:00:47]}  Rxd4 {[%clk 0:00:58]} 28. Rxd4 {[%clk 0:00:48]}  Nxd4 {[%clk 0:00:58]} 29. b4 {[%clk 0:00:48]}  Ne4 {[%clk 0:00:56]} 30. f3 {[%clk 0:00:47]}  Nd6 {[%clk 0:00:53]} 31. Nd5 {[%clk 0:00:47]}  Kf8 {[%clk 0:00:48]} 32. Kf2 {[%clk 0:00:48]}  Ke8 {[%clk 0:00:47]} 33. Ke3 {[%clk 0:00:45]}  N4f5+ {[%clk 0:00:45]} 34. Kd3 {[%clk 0:00:43]}  Kd7 {[%clk 0:00:43]} 35. Nbc3 {[%clk 0:00:43]}  Nh4 {[%clk 0:00:41]} 36. Ne3 {[%clk 0:00:42]}  Ndf5 {[%clk 0:00:40]} 37. Nxf5 {[%clk 0:00:37]}  Nxf5 {[%clk 0:00:41]} 38. Ke4 {[%clk 0:00:38]}  Nd6+ {[%clk 0:00:40]} 39. Kd5 {[%clk 0:00:37]}  a6 {[%clk 0:00:39]} 40. Kc5 {[%clk 0:00:34]}  Nc8 {[%clk 0:00:34]} 41. Nd5 {[%clk 0:00:34]}  h5 {[%clk 0:00:29]} 42. h4 {[%clk 0:00:32]}  Ke6 {[%clk 0:00:28]} 43. Nf4+ {[%clk 0:00:28]}  Kf5 {[%clk 0:00:28]} 44. Nxh5 {[%clk 0:00:29]}  g5 {[%clk 0:00:28]} 45. hxg5 {[%clk 0:00:29]}  Kxg5 {[%clk 0:00:29]} 46. Ng3 {[%clk 0:00:29]}  Kf4 {[%clk 0:00:28]} 47. Ne4 {[%clk 0:00:29]}  Ke3 {[%clk 0:00:26]} 48. Ng5 {[%clk 0:00:22]}  f5 {[%clk 0:00:26]} 49. Ne6 {[%clk 0:00:18]}  b6+ {[%clk 0:00:22]} 50. Kc6 {[%clk 0:00:17]}  a5 {[%clk 0:00:22]} 51. bxa5 {[%clk 0:00:17]}  bxa5 {[%clk 0:00:23]} 52. Kb5 {[%clk 0:00:18]}  Nd6+ {[%clk 0:00:19]} 53. Kxa5 {[%clk 0:00:18]}  Kf2 {[%clk 0:00:18]} 54. Ng7 {[%clk 0:00:18]}  Kxg2 {[%clk 0:00:18]} 55. Nxf5 {[%clk 0:00:18]}  Nxf5 {[%clk 0:00:18]} 56. Kb5 {[%clk 0:00:19]}  Kxf3 {[%clk 0:00:18]} 1/2-1/2


[Site "https://www.chess.com"]

[Event "Titled Tuesday Blitz April 11 Early 2023"]
[White "Devaev, Alexander"]
[Black "Tan, Zhongyi"]
[WhiteFideId "4169395"]
[BlackFideId "8603642"]
[WhiteElo "2204"]
[BlackElo "2519"]
[Result "1-0"]
[Round "08"]
[TimeControl "180+2"]
[Date "2023.04.11"]
[WhiteClock "0:00:16"]
[BlackClock "0:00:01"]

1. d4 {[%clk 0:02:57]}  d5 {[%clk 0:02:58]} 2. c4 {[%clk 0:02:57]}  e6 {[%clk 0:02:57]} 3. Nc3 {[%clk 0:02:57]}  Nf6 {[%clk 0:02:57]} 4. Bg5 {[%clk 0:02:58]}  Be7 {[%clk 0:02:56]} 5. e3 {[%clk 0:02:57]}  O-O {[%clk 0:02:54]} 6. Nf3 {[%clk 0:02:55]}  h6 {[%clk 0:02:54]} 7. Bxf6 {[%clk 0:02:52]}  Bxf6 {[%clk 0:02:55]} 8. cxd5 {[%clk 0:02:52]}  exd5 {[%clk 0:02:55]} 9. Bd3 {[%clk 0:02:51]}  c5 {[%clk 0:02:54]} 10. dxc5 {[%clk 0:02:48]}  Nd7 {[%clk 0:02:50]} 11. O-O {[%clk 0:02:43]}  Bxc3 {[%clk 0:02:44]} 12. bxc3 {[%clk 0:02:43]}  Nxc5 {[%clk 0:02:45]} 13. Bc2 {[%clk 0:02:41]}  b6 {[%clk 0:02:33]} 14. Qd4 {[%clk 0:02:34]}  Be6 {[%clk 0:02:17]} 15. Rad1 {[%clk 0:02:18]}  Rc8 {[%clk 0:02:16]} 16. Qb4 {[%clk 0:01:55]}  Qc7 {[%clk 0:02:11]} 17. Nd4 {[%clk 0:01:48]}  Rfd8 {[%clk 0:02:06]} 18. Rd2 {[%clk 0:01:22]}  Bd7 {[%clk 0:01:55]} 19. Rfd1 {[%clk 0:01:16]}  Ne6 {[%clk 0:01:54]} 20. Ne2 {[%clk 0:01:08]}  Bc6 {[%clk 0:01:50]} 21. Bb3 {[%clk 0:01:05]}  Qe5 {[%clk 0:01:30]} 22. h3 {[%clk 0:00:55]}  Bb7 {[%clk 0:01:17]} 23. Nd4 {[%clk 0:00:47]}  Nc5 {[%clk 0:01:09]} 24. Nf3 {[%clk 0:00:45]}  Qh5 {[%clk 0:00:53]} 25. Rd4 {[%clk 0:00:41]}  Nxb3 {[%clk 0:00:51]} 26. axb3 {[%clk 0:00:39]}  Re8 {[%clk 0:00:46]} 27. Rh4 {[%clk 0:00:32]}  Qf5 {[%clk 0:00:44]} 28. Rhd4 {[%clk 0:00:33]}  Qc2 {[%clk 0:00:41]} 29. Qa3 {[%clk 0:00:20]}  a5 {[%clk 0:00:28]} 30. Rc1 {[%clk 0:00:20]}  Qg6 {[%clk 0:00:26]} 31. Qb2 {[%clk 0:00:18]}  Rc7 {[%clk 0:00:24]} 32. Rcd1 {[%clk 0:00:15]}  Rec8 {[%clk 0:00:24]} 33. Rc1 {[%clk 0:00:14]}  Rc5 {[%clk 0:00:19]} 34. Qd2 {[%clk 0:00:13]}  Qc6 {[%clk 0:00:18]} 35. Ne5 {[%clk 0:00:12]}  Qe8 {[%clk 0:00:18]} 36. Nd3 {[%clk 0:00:12]}  R5c7 {[%clk 0:00:17]} 37. Nf4 {[%clk 0:00:12]}  Rc5 {[%clk 0:00:13]} 38. Nd3 {[%clk 0:00:09]}  R5c7 {[%clk 0:00:14]} 39. Nf4 {[%clk 0:00:09]}  Qb5 {[%clk 0:00:07]} 40. Nxd5 {[%clk 0:00:06]}  Bxd5 {[%clk 0:00:07]} 41. Rxd5 {[%clk 0:00:07]}  Qxb3 {[%clk 0:00:07]} 42. Rd8+ {[%clk 0:00:07]}  Kh7 {[%clk 0:00:07]} 43. Rxc8 {[%clk 0:00:07]}  Rxc8 {[%clk 0:00:07]} 44. Qd3+ {[%clk 0:00:07]}  g6 {[%clk 0:00:07]} 45. Rb1 {[%clk 0:00:07]}  Qxc3 {[%clk 0:00:06]} 46. Qxc3 {[%clk 0:00:07]}  Rxc3 {[%clk 0:00:06]} 47. Rxb6 {[%clk 0:00:08]}  Rc1+ {[%clk 0:00:07]} 48. Kh2 {[%clk 0:00:08]}  Ra1 {[%clk 0:00:06]} 49. Ra6 {[%clk 0:00:08]}  Kg7 {[%clk 0:00:06]} 50. g4 {[%clk 0:00:08]}  g5 {[%clk 0:00:06]} 51. Kg3 {[%clk 0:00:09]}  a4 {[%clk 0:00:07]} 52. h4 {[%clk 0:00:09]}  a3 {[%clk 0:00:05]} 53. h5 {[%clk 0:00:10]}  a2 {[%clk 0:00:05]} 54. Kg2 {[%clk 0:00:10]}  Kf8 {[%clk 0:00:05]} 55. Kf3 {[%clk 0:00:09]}  Ke7 {[%clk 0:00:05]} 56. Kg2 {[%clk 0:00:10]}  Kd7 {[%clk 0:00:05]} 57. Kf3 {[%clk 0:00:10]}  Ke7 {[%clk 0:00:05]} 58. Ra7+ {[%clk 0:00:11]}  Ke6 {[%clk 0:00:05]} 59. Ra6+ {[%clk 0:00:11]}  Kd5 {[%clk 0:00:06]} 60. Ra7 {[%clk 0:00:12]}  Kc4 {[%clk 0:00:06]} 61. Ra8 {[%clk 0:00:12]}  Kb3 {[%clk 0:00:06]} 62. Rb8+ {[%clk 0:00:12]}  Kc3 {[%clk 0:00:06]} 63. Rc8+ {[%clk 0:00:13]}  Kd2 {[%clk 0:00:07]} 64. Ra8 {[%clk 0:00:14]}  Ke1 {[%clk 0:00:07]} 65. Kg2 {[%clk 0:00:14]}  Ke2 {[%clk 0:00:07]} 66. Ra3 {[%clk 0:00:14]}  Kd2 {[%clk 0:00:06]} 67. Ra8 {[%clk 0:00:14]}  Kc3 {[%clk 0:00:06]} 68. Rc8+ {[%clk 0:00:15]}  Kd3 {[%clk 0:00:06]} 69. Rd8+ {[%clk 0:00:14]}  Ke4 {[%clk 0:00:06]} 70. Ra8 {[%clk 0:00:15]}  f5 {[%clk 0:00:03]} 71. Ra4+ {[%clk 0:00:15]}  Ke5 {[%clk 0:00:02]} 72. Ra5+ {[%clk 0:00:15]}  Ke6 {[%clk 0:00:02]} 73. gxf5+ {[%clk 0:00:15]}  Kf6 {[%clk 0:00:01]} 74. e4 {[%clk 0:00:16]} 1-0


[Site "https://www.chess.com"]

[Event "Titled Tuesday Blitz April 11 Early 2023"]
[White "Dronavalli, Harika"]
[Black "Leyva Rivera, Yunier"]
[WhiteFideId "5015197"]
[BlackFideId "3505065"]
[WhiteElo "2432"]
[BlackElo "2430"]
[Result "1/2-1/2"]
[Round "08"]
[TimeControl "180+2"]
[Date "2023.04.11"]
[WhiteClock "0:00:54"]
[BlackClock "0:00:23"]

1. e4 {[%clk 0:03:00]}  c5 {[%clk 0:02:56]} 2. c3 {[%clk 0:03:01]}  d5 {[%clk 0:02:54]} 3. exd5 {[%clk 0:03:01]}  Qxd5 {[%clk 0:02:55]} 4. Nf3 {[%clk 0:03:01]}  Nf6 {[%clk 0:02:54]} 5. d4 {[%clk 0:03:01]}  e6 {[%clk 0:02:54]} 6. Na3 {[%clk 0:02:57]}  Be7 {[%clk 0:02:51]} 7. Be2 {[%clk 0:02:49]}  O-O {[%clk 0:02:50]} 8. O-O {[%clk 0:02:49]}  Rd8 {[%clk 0:02:35]} 9. Nb5 {[%clk 0:02:39]}  Na6 {[%clk 0:02:35]} 10. Be3 {[%clk 0:02:26]}  cxd4 {[%clk 0:02:13]} 11. Qxd4 {[%clk 0:02:26]}  b6 {[%clk 0:02:02]} 12. c4 {[%clk 0:02:05]}  Qxd4 {[%clk 0:02:00]} 13. Nfxd4 {[%clk 0:02:05]}  Bb7 {[%clk 0:01:56]} 14. Rfd1 {[%clk 0:02:04]}  Nc5 {[%clk 0:01:43]} 15. Bf3 {[%clk 0:02:04]}  Bxf3 {[%clk 0:01:43]} 16. Nxf3 {[%clk 0:02:04]}  Ng4 {[%clk 0:00:52]} 17. Rxd8+ {[%clk 0:01:40]}  Rxd8 {[%clk 0:00:46]} 18. Nxa7 {[%clk 0:01:40]}  Nxe3 {[%clk 0:00:45]} 19. Nc6 {[%clk 0:01:38]}  Rd1+ {[%clk 0:00:41]} 20. Rxd1 {[%clk 0:01:38]}  Nxd1 {[%clk 0:00:41]} 21. Nxe7+ {[%clk 0:01:38]}  Kf8 {[%clk 0:00:42]} 22. Nc8 {[%clk 0:01:39]}  Nxb2 {[%clk 0:00:41]} 23. Nxb6 {[%clk 0:01:38]}  Ke7 {[%clk 0:00:37]} 24. Nd4 {[%clk 0:01:21]}  Kd6 {[%clk 0:00:35]} 25. Nb3 {[%clk 0:01:06]}  Kc6 {[%clk 0:00:31]} 26. Nxc5 {[%clk 0:01:04]}  Kxc5 {[%clk 0:00:27]} 27. Nd7+ {[%clk 0:01:05]}  Kd6 {[%clk 0:00:25]} 28. Nb6 {[%clk 0:01:05]}  Kc5 {[%clk 0:00:24]} 29. Nd7+ {[%clk 0:01:03]}  Kd6 {[%clk 0:00:24]} 30. Nb6 {[%clk 0:00:54]}  Kc5 {[%clk 0:00:23]} 1/2-1/2


[Site "https://www.chess.com"]

[Event "Titled Tuesday Blitz April 11 Early 2023"]
[White "Aradhya, Garg"]
[Black "Pham, Le Thao Nguyen"]
[WhiteFideId "25006746"]
[BlackFideId "12401226"]
[WhiteElo "2263"]
[BlackElo "2286"]
[Result "1/2-1/2"]
[Round "08"]
[TimeControl "180+2"]
[Date "2023.04.11"]
[WhiteClock "0:01:30"]
[BlackClock "0:00:14"]

1. d4 {[%clk 0:03:00]}  Nf6 {[%clk 0:02:57]} 2. c4 {[%clk 0:03:00]}  c6 {[%clk 0:02:57]} 3. Bf4 {[%clk 0:02:59]}  d5 {[%clk 0:02:56]} 4. e3 {[%clk 0:02:57]}  Qb6 {[%clk 0:02:46]} 5. Qb3 {[%clk 0:02:55]}  Bf5 {[%clk 0:02:33]} 6. Nc3 {[%clk 0:02:55]}  Na6 {[%clk 0:02:11]} 7. c5 {[%clk 0:02:54]}  Qxb3 {[%clk 0:02:06]} 8. axb3 {[%clk 0:02:55]}  Nb4 {[%clk 0:02:07]} 9. Kd2 {[%clk 0:02:51]}  Nd7 {[%clk 0:02:01]} 10. Nf3 {[%clk 0:02:44]}  f6 {[%clk 0:01:58]} 11. Na2 {[%clk 0:02:37]}  Nxa2 {[%clk 0:01:52]} 12. Rxa2 {[%clk 0:02:38]}  a6 {[%clk 0:01:52]} 13. Ra3 {[%clk 0:02:38]}  e5 {[%clk 0:01:46]} 14. Bg3 {[%clk 0:02:38]}  e4 {[%clk 0:01:40]} 15. Ne1 {[%clk 0:02:38]}  Rc8 {[%clk 0:01:30]} 16. b4 {[%clk 0:02:38]}  h5 {[%clk 0:01:27]} 17. h4 {[%clk 0:02:37]}  Be7 {[%clk 0:01:23]} 18. Be2 {[%clk 0:02:36]}  Kf7 {[%clk 0:01:23]} 19. Nc2 {[%clk 0:02:36]}  Bg4 {[%clk 0:01:14]} 20. f3 {[%clk 0:02:24]}  Bf5 {[%clk 0:01:11]} 21. Na1 {[%clk 0:02:22]}  Rce8 {[%clk 0:00:58]} 22. Nb3 {[%clk 0:02:22]}  Bd8 {[%clk 0:00:59]} 23. Na5 {[%clk 0:02:20]}  Bxa5 {[%clk 0:00:58]} 24. bxa5 {[%clk 0:02:21]}  Nf8 {[%clk 0:00:55]} 25. Bd6 {[%clk 0:02:17]}  Rd8 {[%clk 0:00:55]} 26. Rha1 {[%clk 0:02:10]}  Rd7 {[%clk 0:00:54]} 27. Rb3 {[%clk 0:02:09]}  Ne6 {[%clk 0:00:54]} 28. Ra4 {[%clk 0:02:09]}  g5 {[%clk 0:00:49]} 29. Rab4 {[%clk 0:02:09]}  Nd8 {[%clk 0:00:49]} 30. hxg5 {[%clk 0:02:09]}  fxg5 {[%clk 0:00:49]} 31. Be5 {[%clk 0:02:03]}  Rh7 {[%clk 0:00:48]} 32. f4 {[%clk 0:02:04]}  g4 {[%clk 0:00:37]} 33. Ra4 {[%clk 0:02:02]}  h4 {[%clk 0:00:36]} 34. Ra1 {[%clk 0:02:03]}  Kg6 {[%clk 0:00:31]} 35. Rh1 {[%clk 0:02:01]}  Nf7 {[%clk 0:00:29]} 36. Ra3 {[%clk 0:02:01]}  Nd8 {[%clk 0:00:17]} 37. Raa1 {[%clk 0:02:00]}  Ne6 {[%clk 0:00:17]} 38. Rag1 {[%clk 0:01:55]}  Rh6 {[%clk 0:00:17]} 39. Ke1 {[%clk 0:01:49]}  Rdh7 {[%clk 0:00:17]} 40. g3 {[%clk 0:01:46]}  h3 {[%clk 0:00:14]} 41. Rh2 {[%clk 0:01:46]}  Rf7 {[%clk 0:00:14]} 42. Kd2 {[%clk 0:01:46]}  Rhh7 {[%clk 0:00:14]} 43. Bd1 {[%clk 0:01:43]}  Rh6 {[%clk 0:00:13]} 44. b4 {[%clk 0:01:42]}  Nd8 {[%clk 0:00:13]} 45. Bb3 {[%clk 0:01:41]}  Rd7 {[%clk 0:00:13]} 46. Ra1 {[%clk 0:01:36]}  Be6 {[%clk 0:00:12]} 47. Kc3 {[%clk 0:01:36]}  Kf5 {[%clk 0:00:12]} 48. Bc2 {[%clk 0:01:30]}  Rh5 {[%clk 0:00:12]} 49. Bb3 {[%clk 0:01:29]}  Rh6 {[%clk 0:00:13]} 50. Bc2 {[%clk 0:01:29]}  Rh5 {[%clk 0:00:13]} 51. Bb3 {[%clk 0:01:30]}  Rh6 {[%clk 0:00:14]} 1/2-1/2


[Site "https://www.chess.com"]

[Event "Titled Tuesday Blitz April 11 Early 2023"]
[White "Aldokhin, Ivan"]
[Black "Ahn, Hongjin"]
[WhiteFideId "24115720"]
[BlackFideId "13201492"]
[WhiteElo "2322"]
[BlackElo "2182"]
[Result "1-0"]
[Round "08"]
[TimeControl "180+2"]
[Date "2023.04.11"]
[WhiteClock "0:00:08"]
[BlackClock "0:00:05"]

1. e4 {[%clk 0:02:58]}  c5 {[%clk 0:03:00]} 2. Nf3 {[%clk 0:02:59]}  Nf6 {[%clk 0:03:00]} 3. d4 {[%clk 0:02:59]}  Nxe4 {[%clk 0:03:00]} 4. Bd3 {[%clk 0:02:59]}  Nf6 {[%clk 0:03:00]} 5. O-O {[%clk 0:02:53]}  cxd4 {[%clk 0:03:00]} 6. Nxd4 {[%clk 0:02:52]}  e6 {[%clk 0:03:00]} 7. Re1 {[%clk 0:02:42]}  Be7 {[%clk 0:03:00]} 8. Qf3 {[%clk 0:02:40]}  O-O {[%clk 0:02:59]} 9. Qg3 {[%clk 0:02:39]}  Nc6 {[%clk 0:02:56]} 10. Nb5 {[%clk 0:02:33]}  Ne8 {[%clk 0:02:51]} 11. c4 {[%clk 0:02:17]}  a6 {[%clk 0:02:50]} 12. N5c3 {[%clk 0:02:17]}  f5 {[%clk 0:02:48]} 13. Nd2 {[%clk 0:02:02]}  Nf6 {[%clk 0:02:36]} 14. Nf3 {[%clk 0:02:03]}  d6 {[%clk 0:02:29]} 15. Bh6 {[%clk 0:01:26]}  Ne8 {[%clk 0:02:04]} 16. Rad1 {[%clk 0:00:58]}  Kh8 {[%clk 0:01:52]} 17. Bc1 {[%clk 0:00:58]}  e5 {[%clk 0:01:48]} 18. Nd5 {[%clk 0:00:48]}  Nf6 {[%clk 0:01:20]} 19. Ng5 {[%clk 0:00:41]}  h6 {[%clk 0:01:04]} 20. Nxe7 {[%clk 0:00:31]}  Qxe7 {[%clk 0:01:01]} 21. Nf3 {[%clk 0:00:31]}  e4 {[%clk 0:00:48]} 22. Nh4 {[%clk 0:00:30]}  Kg8 {[%clk 0:00:17]} 23. Ng6 {[%clk 0:00:27]}  Qf7 {[%clk 0:00:16]} 24. Nxf8 {[%clk 0:00:26]}  Qxf8 {[%clk 0:00:17]} 25. Bf1 {[%clk 0:00:23]}  Kh8 {[%clk 0:00:17]} 26. Qxd6 {[%clk 0:00:22]}  Qf7 {[%clk 0:00:12]} 27. b4 {[%clk 0:00:12]}  Be6 {[%clk 0:00:11]} 28. b5 {[%clk 0:00:12]}  axb5 {[%clk 0:00:11]} 29. cxb5 {[%clk 0:00:12]}  Ne7 {[%clk 0:00:11]} 30. a3 {[%clk 0:00:06]}  Ng6 {[%clk 0:00:10]} 31. Bb2 {[%clk 0:00:06]}  Ng4 {[%clk 0:00:09]} 32. h3 {[%clk 0:00:06]}  Nf6 {[%clk 0:00:10]} 33. Rc1 {[%clk 0:00:06]}  Nh5 {[%clk 0:00:08]} 34. Rc7 {[%clk 0:00:06]}  Qg8 {[%clk 0:00:06]} 35. Rxb7 {[%clk 0:00:04]}  Bf7 {[%clk 0:00:02]} 36. Qc7 {[%clk 0:00:03]}  Rf8 {[%clk 0:00:02]} 37. Rd1 {[%clk 0:00:03]}  Nhf4 {[%clk 0:00:02]} 38. Rd7 {[%clk 0:00:04]}  Ne6 {[%clk 0:00:03]} 39. Rxf7 {[%clk 0:00:04]}  Nxc7 {[%clk 0:00:02]} 40. Rxg7 {[%clk 0:00:04]}  Qxg7 {[%clk 0:00:02]} 41. Bxg7+ {[%clk 0:00:05]}  Kxg7 {[%clk 0:00:03]} 42. Rxc7+ {[%clk 0:00:05]}  Kf6 {[%clk 0:00:04]} 43. b6 {[%clk 0:00:06]}  Rb8 {[%clk 0:00:03]} 44. b7 {[%clk 0:00:06]}  Ne7 {[%clk 0:00:04]} 45. a4 {[%clk 0:00:06]}  Ke6 {[%clk 0:00:04]} 46. a5 {[%clk 0:00:06]}  Kd6 {[%clk 0:00:05]} 47. Rxe7 {[%clk 0:00:06]}  Kxe7 {[%clk 0:00:05]} 48. a6 {[%clk 0:00:06]}  Kd6 {[%clk 0:00:05]} 49. a7 {[%clk 0:00:07]}  Kc7 {[%clk 0:00:06]} 50. a8=Q {[%clk 0:00:07]}  Rxb7 {[%clk 0:00:05]} 51. Qa5+ {[%clk 0:00:07]}  Kc8 {[%clk 0:00:05]} 52. Qxf5+ {[%clk 0:00:08]} 1-0


[Site "https://www.chess.com"]